Cogmind - Beta 13 @@@ ROGUE MODE // 2024.05.24 @ 16:19:34 Player: H3-RMN Result: Destroyed by as-57497 with Assembled Heavy Rifle Performance ------------- Evolutions (0) 0 Regions Visited (2) 400 Robots Destroyed (27) 135 Value Destroyed (530) 530 Prototype IDs (0) 0 Alien Tech Used (0) 0 Bonus (19) 19 TOTAL SCORE: 1084 Bonus ------- High Alert Combat Kills 19 Cogmind --------- Core Integrity 0/250 Matter 250/300 Energy 140/140 System Corruption 0% Temperature Cool (0) Movement Treading (240) Ox1 Location -10/Mines Parts ------- > --- POWER (1) -------- Light Deuterium Engine > --- PROPULSION (2) --- Light Treads Wheel > --- UTILITY (2) ------ Large Storage Unit Improved Light Armor Plating > --- WEAPON (2) ------- Light Assault Rifle Grenade Launcher > --- INVENTORY (15) --- Light Ion Engine Light Treads Compact Wheel Combat Airjet High-capacity Matter Pod (200) Structural Scanner Shock Absorption System Hacking Suite Beamcaster Assault Rifle Mini Grenade Launcher Datajack Peak State ------------ > --- POWER ------------ Light Deuterium Engine > --- PROPULSION ------- Light Treads Wheel > --- UTILITY ---------- Large Storage Unit Improved Light Armor Plating > --- WEAPON ----------- Beamcaster Grenade Launcher > --- INVENTORY -------- Light Ion Engine Light Treads Compact Wheel Combat Airjet High-capacity Matter Pod Structural Scanner Shock Absorption System Hacking Suite Assault Rifle Light Assault Rifle Mini Grenade Launcher Datajack [Rating: 17] Favorites ----------- Power Ion Engine Engine Ion Engine Propulsion Light Treads Treads Light Treads Wheel Wheel Utility Large Storage Unit Device Seismic Detector Storage Large Storage Unit Protection Light Armor Plating Weapon Assault Rifle Energy Gun Beamcaster Ballistic Gun Assault Rifle Launcher Grenade Launcher Build | -11 -10 -10 ------- Run | Yrd Mat Min Slots Evolved . | . . . Power . | . . . Propulsion . | . . . Utility . | . . . Weapon . | . . . Parts Attached 30 | 8 4 18 Power 5 | 2 . 3 Engine 5 | 2 . 3 Core . | . . . Reactor . | . . . Propulsion 6 | 2 . 4 Treads 3 | 1 . 2 Leg . | . . . Wheel 3 | 1 . 2 Hover . | . . . Flight . | . . . Utility 8 | 2 3 3 Device 3 | 1 . 2 Storage 3 | 1 2 . Processor . | . . . Hackware . | . . . Protection 2 | . 1 1 Artifact . | . . . Weapon 11 | 2 1 8 Energy Gun 2 | . . 2 Energy Cannon . | . . . Ballistic Gun 5 | 2 . 3 Ballistic Cannon . | . . . Launcher 4 | . 1 3 Special Weapon . | . . . Impact Weapon . | . . . Slashing Weapon . | . . . Piercing Weapon . | . . . Special Melee Weapon . | . . . Unidentified Prototypes . | . . . Parts Lost 9 | . . 9 Power 2 | . . 2 Propulsion 3 | . . 3 Utility 2 | . . 2 Weapon 2 | . . 2 Highest Loss Streak 4 | . . 4 To Critical Strikes . | . . . Average Slot Usage (%) 98 | . 100 97 Engine 13 | . 14 13 Treads 14 | . 14 14 Wheel 13 | . 14 13 Device 6 | . 13 3 Storage 14 | . 14 14 Protection 6 | . . 9 Energy Gun 5 | . . 7 Ballistic Gun 16 | . 28 11 Launcher 6 | . . 9 Naked Turns . | . . . Heaviest Build 36 | 14 33 36 Greatest Support 20 | 10 10 20 Greatest Overweight (x) 3 | 1 3 3 Average Overweight (x) 2 | . 1 2 Largest Inventory Capacity 15 | 8 15 15 Average Capacity 13 | 7 10 15 Most Carried 12 | 5 12 12 Average Carried 9 | 3 8 10 Final Capacity 15 | 8 15 15 Final Carried 12 | 5 12 12 Class Distribution -------------------- 85% | Mutant 14% | Scavenger-Mutant Dominant Class ---------------- Mutant | -10/Materials Mutant | -10/Mines Resources | -11 -10 -10 ----------- Run | Yrd Mat Min Matter Collected 1097 | 310 378 409 Remotely . | . . . Salvage Created 877 | 160 401 316 Parts 56 | 12 30 14 Haulers Intercepted 2 | . 2 . Recyclers Shooed . | . . . Parts Field Recycled . | . . . Retrieved Matter . | . . . Parts Self-Destructed . | . . . Prevented . | . . . Kills | -11 -10 -10 ------- Run | Yrd Mat Min Combat Hostiles Destroyed 29 | . 8 21 Guns 10 | . 8 2 AOE 19 | . . 19 Classes Destroyed 8 | 2 4 2 Worker 1 | . . 1 Tunneler 3 | 3 . . Hauler 2 | . 2 . Recycler 3 | 1 . 2 Operator 2 | . 2 . Swarmer 9 | . 3 6 Grunt 7 | . 5 2 Assembled 13 | . . 13 Best Kill Streak 12 | 4 9 12 Combat Bots Only 12 | . 8 12 Max Kills in Single Turn 4 | 1 1 4 Gunslinging . | . . . Exploded 3 | . . 3 Melee . | . . . Uniques/NPCs Destroyed . | . . . Combat | -11 -10 -10 -------- Run | Yrd Mat Min Hostile Shots Fired 82 | . 24 58 Missed 23 | . 11 12 Damage Taken 1043 | . 146 897 Core 256 | . 28 228 Absorbed by Shields . | . . . Core Remaining (%) 100 | 100 . . Volleys Fired 100 | 8 39 53 Largest 2 | 2 2 2 Hottest 95 | 40 40 95 Shots Fired 173 | 16 78 79 Gun 147 | 16 78 53 Cannon . | . . . Launcher 26 | . . 26 Special . | . . . Kinetic 125 | 16 78 31 Thermal 22 | . . 22 Explosive 26 | . . 26 Electromagnetic . | . . . Robot Hit Streak 12 | 12 5 5 Robot Miss Streak 8 | . 3 8 Penetration Max . | . . . Secondary Targets . | . . . Shots Hit Robots 94 | 12 45 37 Core Hits 63 | 5 19 39 Critical Kills 1 | . 1 . Critical Parts Destroyed 1 | . 1 . Critical Strikes 4 | . 2 2 Burn 2 | . . 2 Destroy 2 | . 2 . Melee Attacks . | . . . Impact . | . . . Slashing . | . . . Piercing . | . . . Sneak Attacks . | . . . Combat Hostiles . | . . . Follow-up Attacks . | . . . Damage Inflicted 2137 | 131 499 1507 Guns 947 | 131 499 317 Cannons . | . . . Explosions 1190 | . . 1190 Melee . | . . . Ramming . | . . . Kinetic 797 | 131 499 167 Thermal 243 | . . 243 Explosive 1097 | . . 1097 Electromagnetic . | . . . Impact . | . . . Slashing . | . . . Piercing . | . . . Highest Corruption . | . . . Average Corruption . | . . . Corruption Purged . | . . . Corruption Blocked . | . . . Overload Shots . | . . . Overflow Damage 50 | . . 50 Projectiles . | . . . Explosions 50 | . . 50 Melee . | . . . Knockbacks . | . . . Impact . | . . . Kinetic . | . . . Secondary . | . . . Self-Inflicted Damage 279 | . . 279 Shots 12 | . . 12 Rammed . | . . . Targets Rammed . | . . . Kicked . | . . . Crushed . | . . . Highest Temperature 221 | . 9 221 Average Temperature 76 | . 7 82 Received Heat Transfer 258 | . 63 195 Siege Activations . | . . . Robots Corrupted . | . . . Combat Hostiles . | . . . Parts Fried . | . . . Impact Corruptions . | . . . Robots Melted . | . . . Combat Hostiles . | . . . Parts Melted 1 | . . 1 Heat Transferred 533 | . . 533 Parts Sabotaged . | . . . Parts Stolen . | . . . Parts Stripped . | . . . Power Chain Reactions . | . . . Alert | -11 -10 -10 ------- Run | Yrd Mat Min Peak Influence 491 | 20 287 491 Initial 111 | . 13 111 Average 237 | 8 155 307 Maximum Alert Level 2 | . 1 2 Low Security (%) 23 | 100 50 1 Level 1 57 | . 50 69 Level 2 18 | . . 29 Level 3 . | . . . Level 4 . | . . . Level 5 . | . . . High Security . | . . . Max Security . | . . . Squads Dispatched 2 | . 2 . Investigation . | . . . Extermination . | . . . Reinforcement 2 | . 2 . Assault . | . . . Garrison . | . . . Intercept . | . . . Searches Triggered . | . . . Construction Impeded . | . . . Haulers Reinforced . | . . . Active Scanning Responses . | . . . Cargo Convoy Interrupts . | . . . Stealth | -11 -10 -10 --------- Run | Yrd Mat Min Distress Signals 2 | . 1 1 Communications Jammed . | . . . Distress Signals . | . . . Times Spotted 43 | . 14 29 Peak Tracking Total 7 | . 4 7 Tactical Retreats 1 | . 1 . Traps | -11 -10 -10 ------- Run | Yrd Mat Min Traps Triggered . | . . . Indirectly . | . . . Trap Hack Attempts . | . . . Triggered . | . . . Disarmed . | . . . Reprogrammed . | . . . Reused . | . . . Traps Extracted . | . . . Installed . | . . . Triggered . | . . . Machines | -11 -10 -10 ---------- Run | Yrd Mat Min Machines Disabled 10 | . . 10 Max in Single Turn 6 | . . 6 Machines Repaired . | . . . Machines Dismantled . | . . . Machines Sabotaged . | . . . Overloaded Fab Kills . | . . . Hacking | -11 -10 -10 --------- Run | Yrd Mat Min Machines Accessed 3 | . 3 . Terminals 2 | . 2 . Fabricators . | . . . Repair Stations . | . . . Recycling Units 1 | . 1 . Scanalyzers . | . . . Garrison Access . | . . . Total Hacks 13 | . 13 . Successful 5 | . 5 . Failed 8 | . 8 . Catastrophic . | . . . Database Lockouts . | . . . Manual 8 | . 8 . Terminals 8 | . 8 . Fabricators . | . . . Repair Stations . | . . . Recycling Units 5 | . 5 . Scanalyzers . | . . . Garrison Access . | . . . Terminal Hacks 1 | . 1 . Robot Analysis 1 | . 1 . Fabricator Hacks . | . . . Repair Station Hacks . | . . . Recycling Unit Hacks 2 | . 2 . Report Inventory 1 | . 1 . Retrieve Components 1 | . 1 . Scanalyzer . | . . . Garrison Access Hacks . | . . . Unauthorized Hacks 2 | . 2 . Terminals 2 | . 2 . Botnet 1 | . 1 . Operators 1 | . 1 . Fabricators . | . . . Repair Stations . | . . . Recycling Units . | . . . Scanalyzers . | . . . Garrison Access . | . . . Data Cores Recovered . | . . . Used . | . . . Hacking Detections 3 | . 3 . Full Trace Events 2 | . 2 . Feedback Events . | . . . Feedback Blocked . | . . . Robot Schematics Acquired . | . . . Robots Built . | . . . Authchips . | . . . Time . | . . . Total Robot Build Rating . | . . . Part Schematics Acquired . | . . . Parts Built . | . . . Authchips . | . . . Time . | . . . Total Part Build Rating . | . . . Parts Repaired . | . . . Time . | . . . Parts Recycled . | . . . Recycled Matter . | . . . Retrieved Matter . | . . . Retrieved Components 2 | . 2 . Parts Scanalyzed . | . . . Part Schematics Acquired . | . . . Parts Damaged . | . . . Bothacking | -11 -10 -10 ------------ Run | Yrd Mat Min Used RIF Installer . | . . . Robots Hacked . | . . . Non-combat . | . . . Combat . | . . . Robot Hacks Applied . | . . . Relay Couplers Released . | . . . Fabnet Peak Effective % . | . . . Robots Rewired . | . . . Allies Hacked . | . . . Hacks Repelled . | . . . Allies | -11 -10 -10 -------- Run | Yrd Mat Min Total Allies 2 | . . 2 Largest Group 2 | . . 2 Highest-Rated Group 49 | . . 49 Highest-Rated Ally 31 | . . 31 Total Orders . | . . . Ally Attacks 3 | . . 3 Total Damage 22 | . . 22 Kills . | . . . Allies Corrupted . | . . . Allies Melted . | . . . Intel | -11 -10 -10 ------- Run | Yrd Mat Min Robot Analysis Total 1 | . 1 . Derelict Logs Recovered 1 | . . 1 Drone Launches . | . . . Drone Recoveries . | . . . Exploration | -11 -10 -10 ------------- Run | Yrd Mat Min Turns Passed 1286 | 115 368 803 Spaces Moved 806 | 65 234 507 Core 1 | 1 . . Treads 4 | . . 4 Legs . | . . . Wheels 801 | 64 234 503 Hover . | . . . Flight . | . . . Fastest Speed 50 | 50 95 110 Average Speed 112 | 91 97 122 Slowest Speed 240 | 95 125 240 Overloaded Moves . | . . . Propulsion Burnouts . | . . . Robots Hopped . | . . . Cave-ins Triggered . | . . . Exploration Rate (%) 51 | 4 58 91 Regions Visited 2 Branch Regions 1 Pre-discovered Areas . | . . . Known Exits Taken . | . . . Unknown Exits Taken 2 | 1 1 . Scrap Searched 1 | . . 1 Spaces Dug 71 | . . 71 Terrain Destroyed 141 | . . 141 Melee . | . . . Projectile . | . . . AOE 141 | . . 141 Terrain Rammed . | . . . Walls Destroyed . | . . . Machines Disabled . | . . . Actions | -11 -10 -10 --------- Run | Yrd Mat Min Total 1016 | 103 303 610 Wait 60 | 16 18 26 Move 804 | 64 233 507 Hop . | . . . Pick Up 19 | 7 7 5 Fast Attach 8 | 5 . 3 Attach 9 | 2 . 7 Detach 1 | . . 1 Swap 13 | 1 4 8 Drop 2 | . 2 . Fire 100 | 8 39 53 Melee . | . . . Ram . | . . . Kick . | . . . Crush . | . . . Escape Stasis . | . . . Rewire . | . . . Trap . | . . . Miscellaneous . | . . . Route ------- -11/Scrapyard -10/Materials -10/Mines (discovered 1 exit: [*Sub]) History --------- Turn | Location | Event 30 | -11/Scrapyard | Discovered new exit (range 16) 116 | -11/Scrapyard | Entered Materials 309 | -10/Materials | Build established: Mutant 333 | -10/Materials | Destroyed 8 combat bots 451 | -10/Materials | Discovered new exit (range 15) 484 | -10/Materials | Entered Mines 501 | -10/Mines | Learned Materials security intel 846 | -10/Mines | Assembled infested the area 860 | -10/Mines | Core integrity fell below 50% 902 | -10/Mines | Core integrity fell below 20% 929 | -10/Mines | Lost 3 parts (1p2n) 931 | -10/Mines | Destroyed 12 combat bots 1063 | -10/Mines | Lost 4 parts (1p1n1u1w) 1221 | -10/Mines | Discovered new exit (range 8) 1287 | -10/Mines | Destroyed by as-57497 with Assembled Heavy Rifle Last Messages --------------- 01159_ U-05 Engineer lays Concrete. 01160_ U-05 Engineer builds a Wall. 01161_ K-01 Serf collects debris. 01166_ R-06 Scavenger destroyed. 01168_ K-01 Serf collects debris. 01169_ Acquired 12 matter. 01171_ Acquired 1 matter. 01171_ K-01 Serf collects debris. 01173_ R-06 Scavenger suffers critical hit (Burn). 01174_ Acquired 1 matter. 01175_ K-01 Serf collects debris. 01176_ Destroyed Tractor Beam. 01176_ R-06 Scavenger suffers critical hit (Burn). 01176_ Lgt. Ion Engine melted. 01176_ R-06 Scavenger destroyed. 01177_ Acquired 1 matter. 01178_ K-01 Serf collects debris. 01221_ EXIT=FOUND Map ----- +----------------------------------------------------+ | ?## #|! ##????# #?## ####?? | | ?# ## # #????# ### ####?? | | ?## ## ## #????# ##? | | ### ?#### # #????# ## | | ????## ##?##### ### ### # | | ###????# | #####?# ## ## ##?## # | | #??????### *%######?# ^ #???# ## | | #???????# #?# #^## #??# # ### | | ##??????# ##### ### # ^ ## ## | | #??????### #### ####### ^# # ## ### | | " #??????## ##### ##????# !# # ### #?# | | ##???###### #### ##????# %# ^ ##?# #?# | | #????######!! #### ##????# ##### #??# #?? | | #????## =%! ### ##????# #???## ??# #?? | | #??#### ##%= #### ###???# #????## #?# #?? | | ####### === #### #####?# #?????# ??# #?? | | #**!% ##= %### # #????? ???# #?? | | # #####%## ! = #????? ????# #?? | | # #?### #% !=%! |= ####???????????# #?? | | # ####! % =%!=!!%* a =%!#???????????# #?? | | # ### = %=! ! ##!#???????????# #?? | | ## ##| # ## #???????????# ### | | ####### #### ### ###?????????# | | ######## ##### # #?????????# | | ########???#########?# # #?????????#### | | #########????#######??# @ #????????????# | | ??????????????????????# #????????????# | | ??????????????????????### # #????????????# | | ??????????????????????####### ####????????????### | | ?????????????????????## #### #?????????????????? | | ???????????????????### #?# #?????????????????? | | ??????????????????## ### #?????????????????? | | #??????????????????# #?????????????????? | | ??????????????????## ## ######?????????????????? | | ??????????????????# ####??????????????????????? | | ??????????????????# #?????????????????????????? | | ?????????????????## #?????????????????????????? | | ?????????????????#< ##?????????????????????????? | | ?????????????????######??????????????????????????? | | ?????????????????????????????????????????????????? | | ?????????????????????????????????????????????????? | | ?????????????????????????????????????????????????? | | ?????????????????????????????????????????????????? | | ?????????????????????????????????????????????????? | | ?????????????????????????????????????????????????? | | ?????????????????????????????????????????????????? | | | | | | | | | +----------------------------------------------------+ Best States ------------- Heat Dissipation 25 Energy Generation 14 Energy Capacity 250 Matter Stores 300 Matter Capacity 300 Sight Range 16 Terrain Scan Density 10 Armor Coverage 150 Evasion (%) 44 Recoil Reduction 2 Item Schematics ----------------- None Robot Schematics ------------------ None Fabricated ------------ Nothing Alien Tech Used ----------------- None Achievements -------------- None Challenges ------------ None Game ------ Seed PhasingMassBroadsword Manual? 0 Play Time 00:13:08 Cumulative 769.9 hours Start 2024.05.24 @ 16:09:18 End 2024.05.24 @ 16:19:34 Sessions 1 Manual Loads 0 Difficulty Rogue Special Mode None Game No. 316 Rogue 286 Adventurer 3 Explorer 27 Win Type - Total 17 Types 10/3/2/1/0/1/0/0/0 Lore% 92 Gallery% 97 Achievement% 86 Wizard Run 0 Options --------- Layout 2 ASCII 0 Keyboard 0 Movement Numpad Keybinds 0 Fullscreen 2 Font 24/Smallcaps Map View 50x44 Zoom Use 0% Tactical HUD 1 Map Filters NONE Filters NONE Steam 1 RUN: 0a67c392-8751-4a64-afc0-fce4acf13cae